[Event "Eurasia Open Cup 2019"]
[Site "Ekaterinburg"]
[Date "2019.08.02"]
[Round "3.31"]
[White "Tyurin, Ilya"]
[Black "Drygalov, Andrey"]
[Result "0-1"]
[ECO "D38"]
[WhiteElo "2168"]
[BlackElo "2494"]
[Annotator "ChessBase"]
[PlyCount "152"]
[EventDate "2019.07.31"]
[EventType "swiss"]
[EventCountry "RUS"]
[SourceTitle "playchess.com"]
[Source "ChessBase"]
[SourceQuality "1"]
[TimeControl "5400+30"]

1. Nf3 {[%emt 0:00:00]} d5 {[%emt 0:00:00]} 2. d4 {[%emt 0:00:00]} Nf6 {[%emt 0:00:00]} 3. c4 {[%emt 0:00:00]} e6 {[%emt 0:00:00]} 4. Nc3 {[%emt 0:00:51]} Bb4 {[%emt 0:00:18]} 5. Bg5 {[%emt 0:00:50]} h6 {[%emt 0:00:42]} 6. Bxf6 {[%emt 0:00:08]} Qxf6 {[%emt 0:00:06]} 7. e3 {[%emt 0:01:14]} O-O {[%emt 0:02:29]} 8. Rc1 {[%emt 0:01:03]} c6 {[%emt 0:02:43]} 9. Be2 {[%emt 0:03:56]} Nd7 {[%emt 0:00:31]} 10. O-O {[%emt 0:00:00]} Rd8 {[%emt 0:00:52]} 11. Qc2 {[%emt 0:26:02]} Qe7 {[%emt 0:07:10]} 12. a3 {[%emt 0:04:29]} Bd6 {[%emt 0:03:06]} 13. e4 {[%emt 0:01:21]} dxe4 {[%emt 0:01:43]} 14. Nxe4 {[%emt 0:01:01]} Bf4 {[%emt 0:01:58]} 15. Rcd1 {[%emt 0:00:12]} b6 {[%emt 0:19:42]} 16. b4 {[%emt 0:04:41]} Bb7 {[%emt 0:18:40]} 17. c5 {[%emt 0:02:44]} Rac8 {[%emt 0:00:48]} 18. Bc4 {[%emt 0:08:12]} a5 {[%emt 0:04:58]} 19. Ba2 {[%emt 0:16:42]} b5 {[%emt 0:01:29]} 20. Bb1 {[%emt 0:02:17]} Nf8 {[%emt 0:00:48]} 21. Ne5 {[%emt 0:03:05]} f6 {[%emt 0:00:01]} 22. Nf3 {[%emt 0:01:08]} axb4 {[%emt 0:02:01]} 23. axb4 {[%emt 0:02:31]} Ra8 {[%emt 0:00:57]} 24. Nc3 {[%emt 0:00:31]} Qf7 {[%emt 0:01:14]} 25. Qe4 {[%emt 0:01:39]} Bb8 {[%emt 0:02:35]} 26. Bc2 {[%emt 0:00:42]} Ra3 {[%emt 0:03:00]} 27. Nb1 {[%emt 0:03:06]} Ra6 {[%emt 0:02:27]} 28. Nc3 {[%emt 0:00:44]} Ra3 {[%emt 0:00:24]} 29. Nb1 {[%emt 0:00:14]} Ra6 {[%emt 0:02:14]} 30. Nc3 {[%emt 0:00:31]} Bc7 {[%emt 0:00:59]} 31. Ra1 {[%emt 0:00:00]} Rda8 {[%emt 0:00:00]} 32. Rxa6 {[%emt 0:02:51]} Rxa6 {[%emt 0:00:03]} 33. Bb3 {[%emt 0:00:10]} Bc8 {[%emt 0:00:35]} 34. Bc2 {[%emt 0:01:54]} Bd7 {[%emt 0:00:20]} 35. Rb1 {[%emt 0:03:18]} Be8 {[%emt 0:01:43]} 36. Qe1 {[%emt 0:03:44]} Qd7 {[%emt 0:01:36]} 37. Qe3 {[%emt 0:00:17]} Bf7 {[%emt 0:00:09]} 38. Ne2 {[%emt 0:02:22]} Qc8 {[%emt 0:01:58]} 39. Ng3 {[%emt 0:00:51]} Qa8 {[%emt 0:02:39]} 40. Nh4 {[%emt 0:01:18]} Ra3 {[%emt 0:00:48]} 41. Qc1 {[%emt 0:01:02]} Ra6 {[%emt 0:02:01]} 42. Qe3 {[%emt 0:00:18]} Ra1 {[%emt 0:01:08]} 43. Qc1 {[%emt 0:00:13]} Rxb1 {[%emt 0:01:28]} 44. Qxb1 {[%emt 0:00:19]} Qa3 {[%emt 0:00:00]} 45. Be4 {[%emt 0:00:01]} Be8 {[%emt 0:01:12]} 46. Nf3 {[%emt 0:00:40]} Bd8 {[%emt 0:00:44]} 47. Bc2 {[%emt 0:00:44]} Bc7 {[%emt 0:03:06]} 48. Be4 {[%emt 0:00:21]} Kf7 {[%emt 0:02:07]} 49. Nf1 {[%emt 0:00:01]} Ke7 {[%emt 0:00:16]} 50. Ng3 {[%emt 0:01:09]} g5 {[%emt 0:01:42]} 51. Nf1 {[%emt 0:00:44]} g4 {[%emt 0:01:05]} 52. N3d2 {[%emt 0:02:22]} Qc3 {[%emt 0:00:46]} 53. Qd3 {[%emt 0:01:10]} Qxb4 {[%emt 0:00:14]} 54. Qe3 {[%emt 0:00:27]} h5 {[%emt 0:02:48]} 55. d5 {[%emt 0:00:00]} cxd5 {[%emt 0:00:37]} 56. Bxd5 {[%emt 0:00:26]} Bf4 {[%emt 0:00:00]} 57. Qe2 {[%emt 0:00:05]} Qxc5 {[%emt 0:00:47]} 58. Be4 {[%emt 0:00:23]} f5 {[%emt 0:00:07]} 59. Bb1 {[%emt 0:00:51]} Ng6 {[%emt 0:00:17]} 60. Ba2 {[%emt 0:01:22]} Ne5 {[%emt 0:00:22]} 61. Nb3 {[%emt 0:00:06]} Qd5 {[%emt 0:01:17]} 62. Na5 {[%emt 0:00:33]} Qd4 {[%emt 0:01:04]} 63. Qc2 {[%emt 0:00:48]} Nd3 {[%emt 0:00:46]} 64. Bb1 {[%emt 0:00:30]} Nc5 {[%emt 0:01:17]} 65. Ba2 {[%emt 0:00:06]} h4 {[%emt 0:00:15]} 66. g3 {[%emt 0:01:01]} hxg3 {[%emt 0:00:53]} 67. hxg3 {[%emt 0:00:25]} Bd6 {[%emt 0:00:05]} 68. Ne3 {[%emt 0:00:03]} Qa4 {[%emt 0:00:20]} 69. Nb3 {[%emt 0:00:19]} Qe4 {[%emt 0:00:59]} 70. Qc3 {[%emt 0:01:01]} Nxb3 {[%emt 0:01:41]} 71. Bxb3 {[%emt 0:00:24]} Bd7 {[%emt 0:00:15]} 72. Bc2 {[%emt 0:00:26]} Qe5 {[%emt 0:00:07]} 73. Qa5 {[%emt 0:00:49]} Bc5 {[%emt 0:00:07]} 74. Qd2 {[%emt 0:00:34]} Bc6 {[%emt 0:00:22]} 75. Nxf5+ {[%emt 0:00:33]} exf5 {[%emt 0:01:40]} 76. Qg5+ {[%emt 0:00:26]} Qf6 {[%emt 0:00:06]} 0-1

[Event "Eurasia Open Cup 2019"]
[Site "Ekaterinburg"]
[Date "2019.08.02"]
[Round "3.32"]
[White "Davtyan, Artur"]
[Black "Fomin, Pavel V."]
[Result "1-0"]
[ECO "A43"]
[WhiteElo "2440"]
[BlackElo "2103"]
[Annotator "NA"]
[PlyCount "89"]
[EventDate "2019.07.31"]
[EventType "swiss"]
[EventCountry "RUS"]
[SourceTitle "playchess.com"]
[Source "ChessBase"]
[SourceQuality "1"]
[TimeControl "5400+30"]

1. d4 {[%emt 0:00:00]} c5 {[%emt 0:00:00]} 2. d5 {[%emt 0:00:00]} Nf6 {[%emt 0:00:15]} 3. Nc3 {[%emt 0:00:25]} e6 {[%emt 0:00:10]} 4. e4 {[%emt 0:00:10]} exd5 {[%emt 0:00:05]} 5. e5 {[%emt 0:05:43]} Ng8 {[%emt 0:06:00]} 6. Qxd5 {[%emt 0:06:13]} Ne7 {[%emt 0:05:07]} 7. Qe4 {[%emt 0:00:41]} a6 {[%emt 0:10:41]} 8. Bc4 {[%emt 0:00:42]} d5 {[%emt 0:00:02]} 9. Nxd5 {[%emt 0:09:18]} Nbc6 {[%emt 0:04:12]} 10. Nxe7 {[%emt 0:23:07]} Bxe7 {[%emt 0:09:19]} 11. Nf3 {[%emt 0:01:19]} Be6 {[%emt 0:02:31]} 12. Be3 {[%emt 0:06:30]} Qb6 {[%emt 0:04:33]} 13. Bxe6 {[%emt 0:15:02]} fxe6 {[%emt 0:07:10]} 14. O-O {[%emt 0:03:57]} O-O {[%emt 0:00:24]} 15. c3 {[%emt 0:00:29]} Rf5 {[%emt 0:07:38]} 16. Rad1 {[%emt 0:07:15]} Qc7 {[%emt 0:03:56]} 17. Bf4 {[%emt 0:01:01]} Raf8 {[%emt 0:04:29]} 18. Bg3 {[%emt 0:10:43]} b5 {[%emt 0:01:21]} 19. Rd2 {[%emt 0:00:09]} Rd8 {[%emt 0:03:55]} 20. Rxd8+ {[%emt 0:00:00]} Bxd8 {[%emt 0:01:25]} 21. Rd1 {[%emt 0:00:31]} Be7 {[%emt 0:01:38]} 22. h4 {[%emt 0:00:00]} g6 {[%emt 0:00:43]} 23. Bf4 {[%emt 0:03:14]} Rf8 {[%emt 0:04:25]} 24. Bg5 {[%emt 0:00:11]} Rd8 {[%emt 0:04:16]} 25. Rxd8+ {[%emt 0:00:30]} Bxd8 {[%emt 0:01:25]} 26. Bxd8 {[%emt 0:00:03]} Nxd8 {[%emt 0:01:15]} 27. Qa8 {[%emt 0:00:00]} h6 {[%emt 0:00:04]} 28. Qxa6 {[%emt 0:00:12]} Qd7 {[%emt 0:01:25]} 29. Qd6 {[%emt 0:00:07]} Qxd6 {[%emt 0:03:16]} 30. exd6 {[%emt 0:00:03]} Nb7 {[%emt 0:00:16]} 31. d7 {[%emt 0:00:03]} Kf7 {[%emt 0:00:15]} 32. Ne5+ {[%emt 0:00:03]} Ke7 {[%emt 0:00:03]} 33. f4 {[%emt 0:00:04]} c4 {[%emt 0:00:15]} 34. Nxg6+ {[%emt 0:00:13]} Kxd7 {[%emt 0:00:51]} 35. Ne5+ {[%emt 0:00:30]} Ke7 {[%emt 0:00:03]} 36. Nc6+ {[%emt 0:00:03]} Kf6 {[%emt 0:01:11]} 37. Nd4 {[%emt 0:00:23]} Nd6 {[%emt 0:00:22]} 38. g4 {[%emt 0:00:00]} e5 {[%emt 0:00:09]} 39. g5+ {[%emt 0:00:00]} hxg5 {[%emt 0:01:04]} 40. hxg5+ {[%emt 0:00:12]} Ke7 {[%emt 0:00:46]} 41. fxe5 {[%emt 0:00:03]} Nf7 {[%emt 0:00:09]} 42. Nf3 {[%emt 0:00:06]} Ke6 {[%emt 0:00:06]} 43. g6 {[%emt 0:01:05]} Nh6 {[%emt 0:00:13]} 44. Kf2 {[%emt 0:00:10]} Kf5 {[%emt 0:00:19]} 45. g7 {[%emt 0:00:43]} 1-0

[Event "Eurasia Open Cup 2019"]
[Site "Ekaterinburg"]
[Date "2019.08.02"]
[Round "3.33"]
[White "Kolomensky, Vladimir"]
[Black "Radzhabov, Rodion"]
[Result "0-1"]
[ECO "B47"]
[WhiteElo "2101"]
[BlackElo "2404"]
[Annotator "NA"]
[PlyCount "116"]
[EventDate "2019.07.31"]
[EventType "swiss"]
[EventCountry "RUS"]
[SourceTitle "playchess.com"]
[Source "ChessBase"]
[SourceQuality "1"]
[TimeControl "5400+30"]

1. e4 {[%emt 0:00:00]} c5 {[%emt 0:00:00]} 2. Nf3 {[%emt 0:00:00]} Nc6 {[%emt 0:00:00]} 3. d4 {[%emt 0:00:00]} cxd4 {[%emt 0:00:00]} 4. Nxd4 {[%emt 0:00:00]} Qc7 {[%emt 0:00:00]} 5. Nc3 {[%emt 0:00:00]} e6 {[%emt 0:00:07]} 6. g3 {[%emt 0:00:15]} a6 {[%emt 0:00:00]} 7. Bg2 {[%emt 0:00:35]} Nf6 {[%emt 0:00:00]} 8. O-O {[%emt 0:00:00]} Bc5 {[%emt 0:00:00]} 9. Nxc6 {[%emt 0:00:49]} dxc6 {[%emt 0:00:00]} 10. Na4 {[%emt 0:00:28]} Ba7 {[%emt 0:00:06]} 11. c4 {[%emt 0:00:20]} e5 {[%emt 0:00:11]} 12. c5 {[%emt 0:00:12]} Be6 {[%emt 0:00:11]} 13. Qc2 {[%emt 0:08:17]} O-O {[%emt 0:00:58]} 14. h3 {[%emt 0:04:54]} Qe7 {[%emt 0:00:33]} 15. Be3 {[%emt 0:22:40]} Ne8 {[%emt 0:14:03]} 16. Qc3 {[%emt 0:13:42]} f6 {[%emt 0:02:54]} 17. Rfd1 {[%emt 0:06:24]} Nc7 {[%emt 0:01:23]} 18. Nb6 {[%emt 0:23:59]} Nb5 {[%emt 0:01:23]} 19. Qc2 {[%emt 0:01:10]} Rad8 {[%emt 0:03:23]} 20. b4 {[%emt 0:05:34]} Bxb6 {[%emt 0:00:00]} 21. cxb6 {[%emt 0:04:47]} Qxb4 {[%emt 0:07:14]} 22. Bc5 {[%emt 0:00:32]} Qc3 {[%emt 0:00:14]} 23. Rdc1 {[%emt 0:02:29]} Qxc2 {[%emt 0:01:29]} 24. Rxc2 {[%emt 0:00:31]} Rf7 {[%emt 0:00:29]} 25. f4 {[%emt 0:00:01]} Rfd7 {[%emt 0:01:34]} 26. fxe5 {[%emt 0:00:41]} fxe5 {[%emt 0:06:37]} 27. Rf2 {[%emt 0:00:49]} Rd2 {[%emt 0:01:08]} 28. Raf1 {[%emt 0:00:33]} Rxf2 {[%emt 0:02:26]} 29. Rxf2 {[%emt 0:01:32]} Nc3 {[%emt 0:00:38]} 30. a3 {[%emt 0:00:00]} Na4 {[%emt 0:03:17]} 31. Be7 {[%emt 0:00:00]} Re8 {[%emt 0:01:18]} 32. Bd6 {[%emt 0:02:05]} Nxb6 {[%emt 0:01:05]} 33. Bf1 {[%emt 0:00:45]} Nc4 {[%emt 0:00:05]} 34. Bxc4 {[%emt 0:01:03]} Bxc4 {[%emt 0:02:00]} 35. a4 {[%emt 0:00:30]} Bd3 {[%emt 0:00:06]} 36. a5 {[%emt 0:00:48]} Bxe4 {[%emt 0:09:25]} 37. Re2 {[%emt 0:00:00]} Rd8 {[%emt 0:00:45]} 38. Bxe5 {[%emt 0:00:20]} Bf5 {[%emt 0:03:59]} 39. g4 {[%emt 0:00:35]} Bd3 {[%emt 0:00:10]} 40. Re3 {[%emt 0:00:56]} c5 {[%emt 0:02:22]} 41. Bc3 {[%emt 0:00:33]} Rd7 {[%emt 0:00:28]} 42. Re5 {[%emt 0:00:23]} c4 {[%emt 0:00:04]} 43. Kf2 {[%emt 0:00:32]} Kf7 {[%emt 0:00:20]} 44. h4 {[%emt 0:00:06]} g6 {[%emt 0:00:33]} 45. h5 {[%emt 0:00:24]} gxh5 {[%emt 0:04:56]} 46. gxh5 {[%emt 0:01:05]} Rc7 {[%emt 0:00:22]} 47. Kg3 {[%emt 0:00:00]} Rc6 {[%emt 0:03:05]} 48. Rg5 {[%emt 0:00:00]} b5 {[%emt 0:00:00]} 49. Rg7+ {[%emt 0:01:06]} Ke6 {[%emt 0:00:55]} 50. Rb7 {[%emt 0:01:04]} Kd5 {[%emt 0:00:00]} 51. Kf4 {[%emt 0:00:26]} Kc5 {[%emt 0:01:11]} 52. Re7 {[%emt 0:00:09]} Rd6 {[%emt 0:02:55]} 53. Rc7+ {[%emt 0:00:20]} Kd5 {[%emt 0:04:16]} 54. Rc8 {[%emt 0:00:20]} Be2 {[%emt 0:00:00]} 55. Kg5 {[%emt 0:01:54]} Ke4 {[%emt 0:01:14]} 56. Bb4 {[%emt 0:00:41]} Rd5+ {[%emt 0:02:06]} 57. Kf6 {[%emt 0:00:21]} Rxh5 {[%emt 0:00:53]} 58. Rd8 {[%emt 0:00:11]} Rh3 {[%emt 0:00:00]} 0-1

[Event "Eurasia Open Cup 2019"]
[Site "Ekaterinburg"]
[Date "2019.08.02"]
[Round "3.34"]
[White "Grebnev, Aleksey"]
[Black "Dilmukhametov, Artur"]
[Result "1/2-1/2"]
[ECO "A23"]
[WhiteElo "2093"]
[BlackElo "2346"]
[Annotator "NA"]
[PlyCount "80"]
[EventDate "2019.07.31"]
[EventType "swiss"]
[EventCountry "RUS"]
[SourceTitle "playchess.com"]
[Source "ChessBase"]
[SourceQuality "1"]
[TimeControl "5400+30"]

1. c4 {[%emt 0:02:47]} e5 {[%emt 0:02:11]} 2. Nc3 {[%emt 0:00:39]} Nf6 {[%emt 0:00:55]} 3. g3 {[%emt 0:00:00]} c6 {[%emt 0:01:52]} 4. Bg2 {[%emt 0:04:42]} d5 {[%emt 0:01:15]} 5. cxd5 {[%emt 0:00:08]} cxd5 {[%emt 0:00:29]} 6. Qb3 {[%emt 0:02:50]} e4 {[%emt 0:16:51]} 7. f3 {[%emt 0:04:52]} Na6 {[%emt 0:15:45]} 8. fxe4 {[%emt 0:04:12]} Nc5 {[%emt 0:00:09]} 9. Qc2 {[%emt 0:00:34]} dxe4 {[%emt 0:05:24]} 10. Nxe4 {[%emt 0:03:53]} Ncxe4 {[%emt 0:00:07]} 11. Bxe4 {[%emt 0:00:08]} Nxe4 {[%emt 0:00:33]} 12. Qxe4+ {[%emt 0:00:06]} Be7 {[%emt 0:00:01]} 13. Nf3 {[%emt 0:00:25]} O-O {[%emt 0:05:17]} 14. O-O {[%emt 0:00:43]} Bf6 {[%emt 0:06:14]} 15. d4 {[%emt 0:03:27]} Re8 {[%emt 0:00:51]} 16. Qd3 {[%emt 0:00:40]} Qd5 {[%emt 0:00:00]} 17. e3 {[%emt 0:04:40]} Bg4 {[%emt 0:05:46]} 18. Ne1 {[%emt 0:06:25]} Bd7 {[%emt 0:04:27]} 19. Qb3 {[%emt 0:07:55]} Qxb3 {[%emt 0:15:33]} 20. axb3 {[%emt 0:00:11]} Be6 {[%emt 0:00:28]} 21. Bd2 {[%emt 0:06:18]} Bxb3 {[%emt 0:00:10]} 22. Ng2 {[%emt 0:00:14]} Bd5 {[%emt 0:02:38]} 23. Nf4 {[%emt 0:00:16]} Be4 {[%emt 0:00:01]} 24. Rfc1 {[%emt 0:00:44]} b6 {[%emt 0:02:10]} 25. Kf2 {[%emt 0:00:35]} a5 {[%emt 0:01:54]} 26. Rc7 {[%emt 0:01:08]} Bd8 {[%emt 0:00:36]} 27. Rc4 {[%emt 0:01:51]} Be7 {[%emt 0:01:05]} 28. Rc7 {[%emt 0:01:33]} Bd6 {[%emt 0:01:09]} 29. Rd7 {[%emt 0:00:34]} Bf8 {[%emt 0:02:59]} 30. Nd5 {[%emt 0:02:23]} Rab8 {[%emt 0:02:05]} 31. Nc3 {[%emt 0:01:50]} Bf5 {[%emt 0:01:38]} 32. Rc7 {[%emt 0:00:00]} Bd6 {[%emt 0:00:46]} 33. Rc6 {[%emt 0:00:00]} Bb4 {[%emt 0:00:01]} 34. Ke2 {[%emt 0:02:10]} b5 {[%emt 0:00:35]} 35. Nd5 {[%emt 0:01:53]} Bg4+ {[%emt 0:00:06]} 36. Kd3 {[%emt 0:00:00]} Bf5+ {[%emt 0:01:14]} 37. Ke2 {[%emt 0:00:08]} Bg4+ {[%emt 0:01:00]} 38. Kd3 {[%emt 0:00:25]} Bf5+ {[%emt 0:00:15]} 39. Ke2 {[%emt 0:00:05]} Bg4+ {[%emt 0:00:04]} 40. Kd3 {[%emt 0:00:04]} Bf5+ {[%emt 0:00:05]} 1/2-1/2

[Event "Eurasia Open Cup 2019"]
[Site "Ekaterinburg"]
[Date "2019.08.02"]
[Round "3.35"]
[White "Mukhina, Jana"]
[Black "Semenova, Elena"]
[Result "1/2-1/2"]
[ECO "C68"]
[WhiteElo "2090"]
[BlackElo "2286"]
[Annotator "NA"]
[PlyCount "129"]
[EventDate "2019.07.31"]
[EventType "swiss"]
[EventCountry "RUS"]
[SourceTitle "playchess.com"]
[Source "ChessBase"]
[SourceQuality "1"]
[TimeControl "5400+30"]

1. e4 {[%emt 0:00:00]} e5 {[%emt 0:00:00]} 2. Nf3 {[%emt 0:00:00]} Nc6 {[%emt 0:00:00]} 3. Bb5 {[%emt 0:00:00]} a6 {[%emt 0:00:00]} 4. Bxc6 {[%emt 0:00:00]} dxc6 {[%emt 0:00:00]} 5. O-O {[%emt 0:00:00]} Bd6 {[%emt 0:00:00]} 6. d4 {[%emt 0:00:00]} exd4 {[%emt 0:00:21]} 7. Qxd4 {[%emt 0:00:00]} f6 {[%emt 0:00:29]} 8. Re1 {[%emt 0:01:47]} Ne7 {[%emt 0:00:27]} 9. e5 {[%emt 0:07:46]} fxe5 {[%emt 0:12:24]} 10. Nxe5 {[%emt 0:01:35]} O-O {[%emt 0:05:01]} 11. Bg5 {[%emt 0:02:05]} Qe8 {[%emt 0:06:21]} 12. Nc4 {[%emt 0:29:27]} Nf5 {[%emt 0:12:00]} 13. Rxe8 {[%emt 0:01:19]} Nxd4 {[%emt 0:00:10]} 14. Rxf8+ {[%emt 0:00:47]} Bxf8 {[%emt 0:07:10]} 15. Ne3 {[%emt 0:03:19]} h6 {[%emt 0:03:49]} 16. Bh4 {[%emt 0:24:33]} Nf5 {[%emt 0:05:01]} 17. Bg3 {[%emt 0:05:48]} Nxe3 {[%emt 0:10:15]} 18. fxe3 {[%emt 0:00:00]} Bc5 {[%emt 0:00:17]} 19. Bf2 {[%emt 0:00:45]} Bf5 {[%emt 0:03:37]} 20. Nd2 {[%emt 0:00:53]} Rd8 {[%emt 0:05:43]} 21. Nb3 {[%emt 0:00:47]} Bb6 {[%emt 0:01:00]} 22. c4 {[%emt 0:05:01]} c5 {[%emt 0:08:56]} 23. Be1 {[%emt 0:09:39]} Re8 {[%emt 0:01:24]} 24. Bf2 {[%emt 0:01:12]} Rd8 {[%emt 0:09:14]} 25. Rc1 {[%emt 0:00:12]} a5 {[%emt 0:01:12]} 26. Be1 {[%emt 0:05:01]} a4 {[%emt 0:00:34]} 27. Na1 {[%emt 0:00:17]} c6 {[%emt 0:04:01]} 28. Nc2 {[%emt 0:00:43]} Bc7 {[%emt 0:00:51]} 29. Bc3 {[%emt 0:01:01]} b5 {[%emt 0:01:12]} 30. a3 {[%emt 0:00:00]} Bd3 {[%emt 0:01:19]} 31. cxb5 {[%emt 0:00:16]} cxb5 {[%emt 0:00:00]} 32. Ne1 {[%emt 0:00:16]} Be4 {[%emt 0:00:00]} 33. Nf3 {[%emt 0:00:31]} Rd3 {[%emt 0:02:01]} 34. Kf2 {[%emt 0:00:57]} Bb6 {[%emt 0:00:42]} 35. Ke2 {[%emt 0:00:21]} Rd8 {[%emt 0:00:44]} 36. Rd1 {[%emt 0:00:34]} Rxd1 {[%emt 0:01:09]} 37. Kxd1 {[%emt 0:00:01]} Bc7 {[%emt 0:00:00]} 38. h3 {[%emt 0:01:27]} Bd6 {[%emt 0:00:00]} 39. Ke2 {[%emt 0:00:08]} b4 {[%emt 0:00:17]} 40. Bd2 {[%emt 0:00:28]} Kf7 {[%emt 0:00:13]} 41. Ne1 {[%emt 0:00:28]} Ke6 {[%emt 0:01:16]} 42. axb4 {[%emt 0:00:34]} cxb4 {[%emt 0:00:25]} 43. Nd3 {[%emt 0:00:28]} Bxg2 {[%emt 0:00:07]} 44. Bxb4 {[%emt 0:00:16]} Bxb4 {[%emt 0:01:11]} 45. Nf4+ {[%emt 0:00:46]} Ke5 {[%emt 0:00:25]} 46. Nxg2 {[%emt 0:00:06]} g5 {[%emt 0:00:35]} 47. Kd3 {[%emt 0:00:00]} Kd5 {[%emt 0:00:16]} 48. e4+ {[%emt 0:00:52]} Ke5 {[%emt 0:00:47]} 49. Ne3 {[%emt 0:00:49]} Bf8 {[%emt 0:00:03]} 50. Ng4+ {[%emt 0:00:19]} Kf4 {[%emt 0:00:10]} 51. Kd4 {[%emt 0:00:27]} Bg7+ {[%emt 0:00:33]} 52. e5 {[%emt 0:00:58]} h5 {[%emt 0:00:20]} 53. Nf6 {[%emt 0:00:01]} Kf5 {[%emt 0:01:14]} 54. Nd7 {[%emt 0:00:01]} g4 {[%emt 0:00:05]} 55. hxg4+ {[%emt 0:00:17]} hxg4 {[%emt 0:00:51]} 56. Kd5 {[%emt 0:00:01]} g3 {[%emt 0:00:28]} 57. e6 {[%emt 0:00:36]} Bf6 {[%emt 0:00:39]} 58. Nxf6 {[%emt 0:00:09]} Kxf6 {[%emt 0:00:40]} 59. Kd6 {[%emt 0:00:32]} g2 {[%emt 0:00:23]} 60. e7 {[%emt 0:00:04]} g1=Q {[%emt 0:00:13]} 61. e8=Q {[%emt 0:00:14]} Qg3+ {[%emt 0:00:14]} 62. Kd5 {[%emt 0:00:13]} Qb3+ {[%emt 0:00:45]} 63. Kc5 {[%emt 0:01:10]} Qc2+ {[%emt 0:00:21]} 64. Kb4 {[%emt 0:00:13]} Qxb2+ {[%emt 0:00:57]} 65. Kxa4 {[%emt 0:01:11]} 1/2-1/2

[Event "Eurasia Open Cup 2019"]
[Site "Ekaterinburg"]
[Date "2019.08.02"]
[Round "3.36"]
[White "Karpeshov, Oleg"]
[Black "Abramov, Ilya"]
[Result "1/2-1/2"]
[ECO "C05"]
[WhiteElo "2286"]
[BlackElo "2065"]
[Annotator "NA"]
[PlyCount "93"]
[EventDate "2019.07.31"]
[EventType "swiss"]
[EventCountry "RUS"]
[SourceTitle "playchess.com"]
[Source "ChessBase"]
[SourceQuality "1"]
[TimeControl "5400+30"]

1. e4 {[%emt 0:00:00]} e6 {[%emt 0:00:50]} 2. d4 {[%emt 0:00:21]} d5 {[%emt 0:00:10]} 3. Nd2 {[%emt 0:00:10]} Nf6 {[%emt 0:00:15]} 4. e5 {[%emt 0:00:10]} Nfd7 {[%emt 0:00:06]} 5. f4 {[%emt 0:00:10]} c5 {[%emt 0:00:20]} 6. c3 {[%emt 0:00:05]} cxd4 {[%emt 0:00:40]} 7. cxd4 {[%emt 0:00:15]} Nc6 {[%emt 0:00:30]} 8. Ndf3 {[%emt 0:00:15]} Qb6 {[%emt 0:08:34]} 9. g3 {[%emt 0:00:30]} Bb4+ {[%emt 0:00:56]} 10. Kf2 {[%emt 0:00:20]} O-O {[%emt 0:03:16]} 11. Kg2 {[%emt 0:00:25]} f6 {[%emt 0:02:19]} 12. Bd3 {[%emt 0:00:31]} Kh8 {[%emt 0:09:16]} 13. Bb1 {[%emt 0:01:10]} Rd8 {[%emt 0:02:29]} 14. h4 {[%emt 0:01:00]} Be7 {[%emt 0:04:28]} 15. h5 {[%emt 0:00:54]} Nf8 {[%emt 0:01:09]} 16. Ne2 {[%emt 0:07:32]} Bd7 {[%emt 0:01:50]} 17. g4 {[%emt 0:07:49]} Rac8 {[%emt 0:02:05]} 18. b3 {[%emt 0:10:04]} Nb4 {[%emt 0:07:48]} 19. exf6 {[%emt 0:06:19]} Bxf6 {[%emt 0:01:18]} 20. g5 {[%emt 0:00:27]} Be7 {[%emt 0:00:39]} 21. Ne5 {[%emt 0:03:49]} Be8 {[%emt 0:03:01]} 22. Be3 {[%emt 0:03:40]} Qc7 {[%emt 0:04:46]} 23. Qd2 {[%emt 0:03:10]} Nc2 {[%emt 0:00:15]} 24. Rc1 {[%emt 0:00:14]} Nxe3+ {[%emt 0:00:58]} 25. Qxe3 {[%emt 0:00:14]} Qb6 {[%emt 0:01:31]} 26. Rh1 {[%emt 0:00:30]} Bd6 {[%emt 0:10:24]} 27. f5 {[%emt 0:03:17]} Bxe5 {[%emt 0:00:22]} 28. Qxe5 {[%emt 0:00:13]} Qd6 {[%emt 0:00:09]} 29. Nf4 {[%emt 0:06:45]} Qxe5 {[%emt 0:02:27]} 30. dxe5 {[%emt 0:00:09]} d4 {[%emt 0:19:12]} 31. Kf2 {[%emt 0:00:44]} Rc5 {[%emt 0:02:20]} 32. Re1 {[%emt 0:01:10]} Bc6 {[%emt 0:01:25]} 33. Bd3 {[%emt 0:06:56]} exf5 {[%emt 0:00:50]} 34. e6 {[%emt 0:00:25]} Re8 {[%emt 0:00:37]} 35. Rad1 {[%emt 0:00:17]} Rc3 {[%emt 0:01:49]} 36. Re5 {[%emt 0:00:35]} g6 {[%emt 0:01:30]} 37. h6 {[%emt 0:00:24]} b6 {[%emt 0:04:11]} 38. b4 {[%emt 0:01:37]} Ra3 {[%emt 0:00:25]} 39. Rd2 {[%emt 0:00:11]} Re7 {[%emt 0:00:32]} 40. Be2 {[%emt 0:00:22]} Re3 {[%emt 0:00:12]} 41. Rxe3 {[%emt 0:01:06]} dxe3+ {[%emt 0:00:02]} 42. Kxe3 {[%emt 0:00:33]} Nxe6 {[%emt 0:00:07]} 43. Nxe6 {[%emt 0:00:20]} Rxe6+ {[%emt 0:00:00]} 44. Kf2 {[%emt 0:00:11]} Re8 {[%emt 0:01:11]} 45. b5 {[%emt 0:00:33]} Be4 {[%emt 0:01:43]} 46. Rd7 {[%emt 0:01:16]} Rc8 {[%emt 0:01:04]} 47. Ke3 {[%emt 0:00:25]} 1/2-1/2

[Event "Eurasia Open Cup 2019"]
[Site "Ekaterinburg"]
[Date "2019.08.02"]
[Round "3.37"]
[White "Bogachkova, Alena"]
[Black "Pogorelskikh, Sergey"]
[Result "0-1"]
[ECO "B67"]
[WhiteElo "2085"]
[BlackElo "2284"]
[Annotator "NA"]
[PlyCount "78"]
[EventDate "2019.07.31"]
[EventType "swiss"]
[EventCountry "RUS"]
[SourceTitle "playchess.com"]
[Source "ChessBase"]
[SourceQuality "1"]
[TimeControl "5400+30"]

1. e4 {[%emt 0:04:51]} c5 {[%emt 0:00:00]} 2. Ne2 {[%emt 0:00:26]} Nc6 {[%emt 0:01:05]} 3. d4 {[%emt 0:00:27]} cxd4 {[%emt 0:00:08]} 4. Nxd4 {[%emt 0:00:02]} Nf6 {[%emt 0:00:00]} 5. Nc3 {[%emt 0:00:05]} d6 {[%emt 0:00:08]} 6. Bg5 {[%emt 0:03:00]} e6 {[%emt 0:02:48]} 7. Qd2 {[%emt 0:01:29]} a6 {[%emt 0:00:05]} 8. O-O-O {[%emt 0:01:55]} Bd7 {[%emt 0:02:11]} 9. f4 {[%emt 0:05:29]} b5 {[%emt 0:04:56]} 10. Nf3 {[%emt 0:32:47]} b4 {[%emt 0:07:00]} 11. Nd5 {[%emt 0:03:56]} exd5 {[%emt 0:10:39]} 12. exd5 {[%emt 0:00:04]} Ne7 {[%emt 0:01:17]} 13. Bxf6 {[%emt 0:05:08]} gxf6 {[%emt 0:00:27]} 14. Qxb4 {[%emt 0:00:52]} Qc7 {[%emt 0:06:13]} 15. c4 {[%emt 0:13:38]} Bh6 {[%emt 0:04:23]} 16. g3 {[%emt 0:00:34]} O-O {[%emt 0:00:10]} 17. Qc3 {[%emt 0:09:53]} Bg7 {[%emt 0:01:33]} 18. h3 {[%emt 0:01:02]} Rab8 {[%emt 0:06:03]} 19. Rh2 {[%emt 0:04:41]} f5 {[%emt 0:05:11]} 20. Nd4 {[%emt 0:01:16]} Qb6 {[%emt 0:01:29]} 21. Rc2 {[%emt 0:02:55]} Rfc8 {[%emt 0:00:55]} 22. Bg2 {[%emt 0:01:51]} Bb5 {[%emt 0:05:01]} 23. b3 {[%emt 0:01:52]} Qc5 {[%emt 0:00:11]} 24. Rd3 {[%emt 0:01:22]} Bd7 {[%emt 0:09:19]} 25. Kd1 {[%emt 0:00:26]} Kf8 {[%emt 0:00:48]} 26. Bf3 {[%emt 0:00:06]} Ng8 {[%emt 0:02:42]} 27. Qd2 {[%emt 0:01:45]} Nf6 {[%emt 0:00:06]} 28. Nc6 {[%emt 0:00:39]} Bxc6 {[%emt 0:19:15]} 29. dxc6 {[%emt 0:00:06]} Rxc6 {[%emt 0:03:39]} 30. Bxc6 {[%emt 0:01:05]} Qxc6 {[%emt 0:00:06]} 31. Rxd6 {[%emt 0:00:10]} Qf3+ {[%emt 0:00:30]} 32. Kc1 {[%emt 0:00:14]} Re8 {[%emt 0:00:38]} 33. Rd8 {[%emt 0:00:39]} Ne4 {[%emt 0:03:51]} 34. Rxe8+ {[%emt 0:00:04]} Kxe8 {[%emt 0:00:05]} 35. Qe2 {[%emt 0:00:37]} Qxg3 {[%emt 0:01:23]} 36. c5 {[%emt 0:01:46]} Qg1+ {[%emt 0:02:03]} 37. Qd1 {[%emt 0:00:00]} Qe3+ {[%emt 0:00:06]} 38. Kb1 {[%emt 0:00:17]} Nc3+ {[%emt 0:00:10]} 39. Rxc3 {[%emt 0:00:10]} Qxc3 {[%emt 0:00:07]} 0-1